fUSD/lending_fUSD_20240701
["ID","MTS","AMOUNT","RATE_DAILY","PERIOD"]
[330853535,1719865847013,-1078.93,0.00021917,4]
[330853536,1719865847022,-2141.82,0.00021917,4]
[330853537,1719865847031,-151.0,0.00021917,2]
[330853538,1719865847040,-1078.93,0.00021917,4]
[330853539,1719865847049,-151.0,0.00021917,2]
[330853540,1719865847058,-2141.82,0.00021917,4]
[330853541,1719865847067,-151.0,0.00021917,2]
[330853542,1719865847076,-2141.82,0.00021917,4]
[330853543,1719865847085,-1078.93,0.00021917,4]
[330853544,1719865847094,-151.0,0.00021917,2]
[330853545,1719865847103,-2141.82,0.00021917,4]
[330853546,1719865847111,-1078.93,0.00021917,4]
[330853547,1719865847120,-2141.82,0.00021917,4]
[330853548,1719865847129,-1078.93,0.00021917,4]
[330853549,1719865847138,-2141.82,0.00021917,4]
[330853550,1719865847149,-1078.93,0.00021917,4]
[330853551,1719865847159,-151.0,0.00021917,2]
[330853552,1719865847168,-2141.82,0.00021917,4]
[330853553,1719865847178,-177.47181145,0.00021917,2]
[330853554,1719865847187,-1078.93,0.00021917,4]
[330853555,1719865847195,-2130.59,0.00021917,4]
[330853556,1719865847204,-1078.93,0.00021917,4]
[330853557,1719865847213,-2141.82,0.00021917,4]
[330853558,1719865847222,-2130.59,0.00021917,4]
[330853559,1719865847231,-1078.93,0.00021917,4]
[330853560,1719865847240,-2141.82,0.00021917,4]
[330853561,1719865847248,-2130.59,0.00021917,4]
[330853562,1719865847258,-1078.93,0.00021917,4]
[330853563,1719865847267,-2130.59,0.00021917,4]
[330853564,1719865847276,-500.0,0.00021917,4]
[330853565,1719865847287,-1078.93,0.00021917,4]
[330853566,1719865847297,-2130.59,0.00021917,4]
[330853567,1719865847306,-500.0,0.00021917,4]
[330853568,1719865847315,-2130.59,0.00021917,4]
[330853569,1719865847326,-500.0,0.00021917,4]
[330853570,1719865847335,-1078.93,0.00021917,4]
[330853571,1719865847344,-2130.59,0.00021917,4]
[330853572,1719865847353,-500.0,0.00021917,4]
[330853573,1719865847363,-2130.59,0.00021917,4]
[330853574,1719865847373,-500.0,0.00021917,4]
[330853575,1719865847382,-151.0,0.00021917,2]
[330853576,1719865847392,-1078.93,0.00021917,4]
[330853577,1719865847401,-151.0,0.00021917,2]
[330853578,1719865847410,-2130.59,0.00021917,4]
[330853579,1719865847420,-1078.93,0.00021917,4]
[330853580,1719865847429,-2130.59,0.00021917,4]
[330853581,1719865847439,-500.0,0.00021917,4]
[330853582,1719865847448,-1078.93,0.00021917,4]
[330853583,1719865847457,-2130.59,0.00021917,4]
[330853584,1719865847466,-500.0,0.00021917,4]
[330853585,1719865847474,-1078.93,0.00021917,4]
[330853586,1719865847483,-500.0,0.00021917,4]
[330853587,1719865847493,-2130.59,0.00021917,4]
[330853588,1719865847502,-1078.93,0.00021917,4]
[330853589,1719865847511,-502.7,0.00021917,4]
[330853590,1719865847520,-1078.93,0.00021917,4]
[330853591,1719865847528,-2130.59,0.00021917,4]
[330853592,1719865847538,-1079.07,0.00021917,4]
[330853593,1719865847547,-2130.59,0.00021917,4]
[330853594,1719865847557,-2130.59,0.00021917,4]
[330853595,1719865847566,-2130.59,0.00021917,4]
[330853596,1719865847575,-151.0,0.00021917,2]
[330853597,1719865847584,-151.0,0.00021917,2]
[330853598,1719865847593,-2130.59,0.00021917,4]
[330853599,1719865847603,-151.0,0.00021917,2]
[330853600,1719865847612,-2130.59,0.00021917,4]
[330853601,1719865847621,-2130.59,0.00021917,4]
[330853602,1719865847630,-2130.59,0.00021917,4]
[330853603,1719865847639,-929.75,0.00021917,4]
[330853604,1719865847648,-2130.59,0.00021917,4]
[330853605,1719865847657,-929.75,0.00021917,4]
[330853606,1719865847666,-3305.65,0.00021917,4]
[330853607,1719865847675,-4682.97,0.00021917,4]
[330853608,1719865847684,-2130.59,0.00021917,4]
[330853609,1719865847694,-929.75,0.00021917,4]
[330853610,1719865847702,-3305.65,0.00021917,4]
[330853611,1719865847712,-2130.59,0.00021917,4]
[330853612,1719865847722,-929.75,0.00021917,4]
[330853613,1719865847732,-236.167993,0.00021917,2]
[330853614,1719865847741,-3305.65,0.00021917,4]
[330853615,1719865847750,-236.167993,0.00021917,2]
[330853616,1719865847760,-2130.66,0.00021917,4]
[330853617,1719865847769,-929.75,0.00021917,4]
[330853618,1719865847778,-236.167993,0.00021917,2]
[330853619,1719865847787,-4487.84,0.00021917,4]
[330853620,1719865847796,-3305.65,0.00021917,4]
[330853621,1719865847805,-929.75,0.00021917,4]
[330853622,1719865847814,-3305.65,0.00021917,4]
[330853623,1719865847824,-929.75,0.00021917,4]
[330853624,1719865847833,-236.167993,0.00021917,2]
[330853625,1719865847842,-929.75,0.00021917,4]
[330853626,1719865847851,-236.167993,0.00021917,2]
[330853627,1719865847860,-3305.65,0.00021917,4]
[330853628,1719865847869,-236.167993,0.00021917,2]
[330853629,1719865847879,-3305.65,0.00021917,4]
[330853630,1719865847888,-929.75,0.00021917,4]
[330853631,1719865847897,-3305.65,0.00021917,4]
[330853632,1719865847906,-929.75,0.00021917,4]
[330853633,1719865847915,-22615.18,0.00021917,4]
[330853634,1719865847924,-3305.65,0.00021917,4]
[330853635,1719865847933,-929.75,0.00021917,4]
[330853636,1719865847945,-500.0,0.00021917,4]
[330853637,1719865847954,-22615.18,0.00021917,4]
[330853638,1719865847963,-929.75,0.00021917,4]
[330853639,1719865847972,-3305.65,0.00021917,4]
[330853640,1719865847981,-22615.18,0.00021917,4]
[330853641,1719865847990,-500.0,0.00021917,4]
[330853642,1719865847999,-500.0,0.00021917,4]
[330853643,1719865848009,-929.75,0.00021917,4]
[330853644,1719865848018,-3305.65,0.00021917,4]
[330853645,1719865848027,-528.0,0.00021917,4]
[330853646,1719865848036,-22615.18,0.00021917,4]
[330853647,1719865848045,-3305.65,0.00021917,4]
[330853648,1719865848055,-929.75,0.00021917,4]
[330853649,1719865848064,-22615.18,0.00021917,4]
[330853650,1719865848073,-3305.65,0.00021917,4]
[330853651,1719865848082,-929.75,0.00021917,4]
[330853652,1719865848092,-22615.18,0.00021917,4]
[330853653,1719865848101,-929.75,0.00021917,4]
[330853654,1719865848110,-573.71,0.00021917,4]
[330853655,1719865848119,-573.71,0.00021917,4]
[330853656,1719865848129,-929.75,0.00021917,4]
[330853657,1719865848138,-573.71,0.00021917,4]
[330853658,1719865848148,-22615.18,0.00021917,4]
[330853659,1719865848157,-573.71,0.00021917,4]
[330853660,1719865848167,-573.71,0.00021917,4]
[330853661,1719865848176,-929.75,0.00021917,4]
[330853662,1719865848185,-22615.18,0.00021917,4]
[330853663,1719865848196,-573.71,0.00021917,4]
[330853664,1719865848205,-8471.61146119,0.00021917,4]
[330853665,1719865848463,-14143.56853881,0.00021917,4]
[330853666,1719865848472,-929.75,0.00021917,4]
[330853667,1719865848481,-573.71,0.00021917,4]
[330853668,1719865848490,-573.71,0.00021917,4]
[330853669,1719865848499,-22615.18,0.00021917,4]
[330853670,1719865848508,-929.75,0.00021917,4]
[330853671,1719865848517,-573.71,0.00021917,4]
[330853672,1719865848525,-1694.81,0.00021917,4]
[330853673,1719865848534,-573.71,0.00021917,4]
[330853674,1719865848543,-929.75,0.00021917,4]
[330853675,1719865848553,-22615.18,0.00021917,4]
[330853676,1719865848563,-573.71,0.00021917,4]
[330853677,1719865848572,-573.71,0.00021917,4]
[330853678,1719865848580,-22615.18,0.00021917,4]
[330853679,1719865848589,-1694.81,0.00021917,4]
[330853680,1719865848598,-573.71,0.00021917,4]
[330853681,1719865848607,-151.0,0.00021917,2]
[330853682,1719865848615,-22615.18,0.00021917,4]
[330853683,1719865848624,-573.71,0.00021917,4]
[330853684,1719865848633,-929.75,0.00021917,4]
[330853685,1719865848641,-151.0,0.00021917,2]
[330853686,1719865848651,-1694.81,0.00021917,4]
[330853687,1719865848659,-573.71,0.00021917,4]
[330853688,1719865848671,-22615.18,0.00021917,4]
[330853689,1719865848680,-573.71,0.00021917,4]
[330853690,1719865848692,-154.088146,0.00021917,2]
[330853691,1719865848701,-929.75,0.00021917,4]
[330853692,1719865848710,-1694.81,0.00021917,4]
[330853693,1719865848718,-573.71,0.00021917,4]
[330853694,1719865848728,-22615.18,0.00021917,4]
[330853695,1719865848737,-573.71,0.00021917,4]
[330853696,1719865848746,-929.96,0.00021917,4]
[330853697,1719865848755,-1694.81,0.00021917,4]
[330853698,1719865848765,-22615.18,0.00021917,4]
[330853699,1719865848774,-1694.81,0.00021917,4]
[330853700,1719865848783,-500.0,0.00021917,4]
[330853701,1719865848792,-22615.18,0.00021917,4]
[330853702,1719865848801,-1694.81,0.00021917,4]
[330853703,1719865848810,-22615.18,0.00021917,4]
[330853704,1719865848819,-1694.81,0.00021917,4]
[330853705,1719865848828,-1694.81,0.00021917,4]
[330853706,1719865848837,-1694.81,0.00021917,4]
[330853707,1719865848846,-500.0,0.00021917,4]
[330853708,1719865848855,-500.0,0.00021917,4]
[330853709,1719865848865,-500.0,0.00021917,4]
[330853710,1719865848874,-1694.81,0.00021917,4]
[330853711,1719865848883,-596.25441851,0.00021917,4]
[330853712,1719865848891,-1694.81,0.00021917,4]
[330853713,1719865848899,-1694.81,0.00021917,4]
[330853714,1719865848906,-1694.81,0.00021917,4]
[330853715,1719865848915,-500.0,0.00021917,4]
[330853716,1719865848924,-1694.81,0.00021917,4]
[330853717,1719865848933,-500.0,0.00021917,4]
[330853718,1719865848943,-280.39166944,0.00021917,4]
[330853719,1719865848955,-1694.81,0.00021917,4]
[330853720,1719865848964,-500.0,0.00021917,4]
[330853721,1719865848976,-500.0,0.00021917,4]
[330853722,1719865848984,-500.0,0.00021917,4]
[330853723,1719865848994,-1694.81,0.00021917,4]
[330853724,1719865849003,-500.0,0.00021917,4]
[330853725,1719865849011,-506.29759762,0.00021917,4]
[330853726,1719865849020,-1694.81,0.00021917,4]
[330853727,1719865849029,-1694.81,0.00021917,4]
[330853728,1719865849037,-1694.81,0.00021917,4]
[330853729,1719865849046,-1694.81,0.00021917,4]
[330853730,1719865849055,-1694.81,0.00021917,4]
[330853731,1719865849064,-2393.41,0.00021917,4]
[330853732,1719865849073,-1694.81,0.00021917,4]
[330853733,1719865849083,-2393.41,0.00021917,4]
[330853734,1719865849092,-1695.03,0.00021917,4]
[330853735,1719865849101,-500.0,0.00021917,4]
[330853736,1719865849111,-2393.41,0.00021917,4]
[330853737,1719865849120,-637.9261584,0.00021917,4]
[330853738,1719865849129,-8196.48,0.00021917,4]
[330853739,1719865849139,-2393.41,0.00021917,4]
[330853740,1719865849150,-8196.48,0.00021917,4]
[330853741,1719865849160,-2393.41,0.00021917,4]
[330853742,1719865849170,-8196.48,0.00021917,4]
[330853743,1719865849179,-2393.41,0.00021917,4]
[330853744,1719865849190,-151.0,0.00021917,2]
[330853745,1719865849199,-8196.48,0.00021917,4]
[330853746,1719865849208,-151.0,0.00021917,2]
[330853747,1719865849217,-2393.41,0.00021917,4]
[330853748,1719865849226,-2393.41,0.00021917,4]
[330853749,1719865849237,-8196.48,0.00021917,4]
[330853750,1719865849246,-500.0,0.00021917,4]
[330853751,1719865849255,-500.0,0.00021917,4]
[330853752,1719865849264,-2393.41,0.00021917,4]
[330853753,1719865849273,-500.0,0.00021917,4]
[330853754,1719865849282,-500.0,0.00021917,4]
[330853755,1719865849296,-8196.48,0.00021917,4]
[330853756,1719865849305,-2393.41,0.00021917,4]
[330853757,1719865849315,-500.0,0.00021917,4]
[330853758,1719865849324,-500.0,0.00021917,4]
[330853759,1719865849337,-8196.48,0.00021917,4]
[330853760,1719865849346,-2393.41,0.00021917,4]
[330853761,1719865849356,-500.0,0.00021917,4]
[330853762,1719865849365,-8196.48,0.00021917,4]
[330853763,1719865849375,-2393.41,0.00021917,4]
[330853764,1719865849384,-500.0,0.00021917,4]
[330853765,1719865849393,-500.0,0.00021917,4]
[330853766,1719865849403,-8196.48,0.00021917,4]
[330853767,1719865849412,-500.0,0.00021917,4]
[330853768,1719865849422,-2393.41,0.00021917,4]
[330853769,1719865849431,-500.0,0.00021917,4]
[330853770,1719865849443,-500.0,0.00021917,4]
[330853771,1719865849452,-8196.48,0.00021917,4]
[330853772,1719865849461,-500.0,0.00021917,4]
[330853773,1719865849472,-500.0,0.00021917,4]
[330853774,1719865849481,-500.0,0.00021917,4]
[330853775,1719865849491,-500.0,0.00021917,4]
[330853776,1719865849500,-500.0,0.00021917,4]
[330853777,1719865849509,-8196.48,0.00021917,4]
[330853778,1719865849518,-500.0,0.00021917,4]
[330853779,1719865849527,-500.0,0.00021917,4]
[330853780,1719865849537,-500.0,0.00021917,4]
[330853781,1719865849546,-500.0,0.00021917,4]
[330853782,1719865849555,-8196.48,0.00021917,4]
[330853783,1719865849565,-500.0,0.00021917,4]
[330853784,1719865849574,-500.0,0.00021917,4]
[330853785,1719865849583,-500.0,0.00021917,4]
[330853786,1719865849593,-500.0,0.00021917,4]
[330853787,1719865849602,-500.0,0.00021917,4]
[330853788,1719865849611,-400.53257384,0.00021917,4]
[330853789,1719865849634,-99.46742616,0.00021917,4]
[330853790,1719865849644,-500.0,0.00021917,4]
[330853791,1719865849654,-500.0,0.00021917,4]
[330853792,1719865849664,-500.0,0.00021917,4]
[330853793,1719865849673,-500.0,0.00021917,4]
[330853794,1719865849682,-253.76138084,0.00021917,4]
[330853795,1719865849693,-637.3545592,0.00021917,4]
[330853796,1719865849702,-500.0,0.00021917,4]
[330853797,1719865849711,-500.0,0.00021917,4]
[330853798,1719865849720,-8196.48,0.00021917,4]
[330853799,1719865849729,-449.20577082,0.00021917,4]
[330853800,1719865849924,-565.99524606,0.00021825,2]
[330853801,1719865849994,-0.00583402,0.00021825,2]
[330853802,1719865850006,-252.99891992,0.00021825,2]
[330853803,1719865850017,-50.79422918,0.00021917,4]
[330853804,1719865850026,-302.01998079,0.00021917,4]
[330853805,1719865850038,-292.10250999,0.00021917,4]
[330853806,1719865850050,-837.93466786,0.00021917,4]
[330853807,1719865850070,-6764.42284136,0.00021917,4]
[330853808,1719865850080,-500.0,0.00021917,4]
[330853809,1719865850090,-500.0,0.00021917,4]
[330853810,1719865850101,-8196.48,0.00021917,4]
[330853811,1719865850111,-500.0,0.00021917,4]
[330853812,1719865850120,-500.0,0.00021917,4]
[330853813,1719865850131,-500.0,0.00021917,4]
[330853814,1719865850141,-8196.48,0.00021917,4]
[330853815,1719865850153,-500.0,0.00021917,4]
[330853816,1719865850162,-500.0,0.00021917,4]
[330853817,1719865850172,-500.0,0.00021917,4]
[330853818,1719865850181,-266.74011367,0.00021917,4]
[330853819,1719865850191,-500.0,0.00021917,4]
[330853820,1719865850200,-359.68,0.00021917,4]
[330853821,1719865850210,-500.0,0.00021917,4]
[330853822,1719865850219,-1391.9803298,0.00021917,4]
[330853823,1719865850295,-386.54715995,0.00021917,4]
[330853824,1719865850306,-2984.75,0.00021917,4]
[330853825,1719865850317,-696.65702926,0.00021917,4]
[330853826,1719865850492,-655.0,0.00021917,4]
[330853827,1719865850505,-795.64528973,0.00021917,4]
[330853828,1719865850562,-1285.90019126,0.00021917,4]
[330853829,1719865850575,-827.3869112,0.00021917,4]
[330853830,1719865850600,-5979.40394953,0.00021917,4]
[330853842,1719866142608,45000.0,0.000112,2]
[330853865,1719866730815,290.46265469,0.000112,2]
[330853866,1719866739180,8341.25410495,0.000112,2]
[330853867,1719866743889,1366.44919066,0.000112,2]
[330853868,1719866759104,173.47662128,0.000112,2]
[330853869,1719866764067,647.77257455,0.000112,2]
[330853870,1719866771785,155.0,0.000112,2]
[330853872,1719866959304,219.28826757,0.000112,2]
[330853873,1719866959840,264.53806509,0.00011199,2]
[330853875,1719866993259,155.0,0.000112,2]
[330853876,1719867008177,155.0,0.000112,2]
[330853902,1719867031836,-363.95360909,0.00012273,2]
[330853903,1719867031846,-189.23515969,0.00013516,2]
[330853904,1719867031855,-264.11490651,0.00013576,2]
[330853905,1719867031865,-6861.0,0.000164,5]
[330853906,1719867031874,-207.0,0.00017259,2]
[330853907,1719867031884,-3982.71074965,0.00017533,2]
[330853908,1719867031893,-150.0,0.00018082,2]
[330853909,1719867031903,-483.99,0.00018099,2]
[330853910,1719867031912,-447.64794776,0.00018864,2]
[330853911,1719867031923,-150.90846153,0.000189,2]
[330853912,1719867031932,-155.0,0.00018919,2]
[330853913,1719867031943,-205.3758562,0.00018999,2]
[330853914,1719867031952,-15059.47291316,0.00019213,2]
[330853915,1719867031964,-5151.0,0.00019213,2]
[330853916,1719867031976,-1025.33320867,0.00019213,2]
[330853917,1719867031989,-46.52387817,0.00019213,2]
[330853918,1719867031999,-150.0,0.0001936,2]
[330853919,1719867032008,-303.9424566,0.00019384,2]
[330853921,1719867032024,-207.9075434,0.00019384,2]
[330853922,1719867032033,-250.0,0.00019386,2]
[330853924,1719867032042,-1161.71472316,0.00019399,2]
[330853926,1719867032053,-7542.14527684,0.00019399,2]
[330853928,1719867032063,-1000.0,0.00019414,2]
[330853930,1719867032072,-3097.86896954,0.00019763,2]
[330853932,1719867032084,-4509.92103046,0.00019763,2]
[330853933,1719867032093,-150.0,0.00019775,4]
[330853934,1719867032103,-150.90846153,0.00019861,2]
[330853935,1719867032113,-250.0,0.00020017,2]
[330853936,1719867032122,-475.92327265,0.00020017,2]
[330853938,1719867032137,-674.44896287,0.00020017,2]
[330853941,1719867032148,-670.92,0.00020017,2]
[330853943,1719867032159,-168.70776448,0.00020017,2]
[330853945,1719867032168,-709.00468209,0.00020017,2]
[330853947,1719867032183,-318.36531791,0.00020017,2]
[330853949,1719867032192,-147.46749504,0.00020233,30]
[330853950,1719867032204,-676.29250496,0.00020233,30]
[330853951,1719867032213,-188.85,0.00020252,2]
[330853952,1719867032222,-250.0,0.00020278,2]
[330853953,1719867032231,-182.14,0.00020279,2]
[330853954,1719867032241,-14.13525354,0.00020325,4]
[330853957,1719867032265,-290.89568695,0.00019863,2]
[330853959,1719867032274,-92.70431301,0.00020325,4]
[330853966,1719867037584,-43.16043345,0.00020325,4]
[330853967,1719867037594,-220.74925893,0.00020363,2]
[330853968,1719867037611,-263.24074107,0.00020363,2]
[330853969,1719867037622,-171.93,0.00020548,2]
[330853970,1719867037633,-176.876544,0.00020592,2]
[330853971,1719867037646,-131.48749541,0.00020592,2]
[330853972,1719867037658,-43.64007959,0.00020592,2]
[330853973,1719867037668,-1004.759123,0.00020592,2]
[330853974,1719867037681,-249.91470026,0.00020592,2]
[330853975,1719867037693,-277.0,0.00020592,2]
[330853976,1719867037721,-72.80248674,0.00020592,2]
[330853977,1719867037732,-547.323128,0.00020592,2]
[330853978,1719867037741,-755.11649735,0.00020592,2]
[330853979,1719867037756,-399.29055165,0.00020592,2]
[330853980,1719867037765,-686.60564835,0.00020592,2]
[330853981,1719867037778,-212.97013265,0.00020592,2]
[330853982,1719867037787,-233.93822765,0.00020592,2]
[330853983,1719867037798,-1271.20037635,0.00020592,2]
[330853984,1719867037808,-716.157361,0.00020592,2]
[330853985,1719867037817,-1231.477039,0.00020592,2]
[330853986,1719867037826,-968.4921726,0.00020592,2]
[330853987,1719867037838,-474.5166384,0.00020592,2]
[330853988,1719867037847,-1499.292968,0.00020592,2]
[330853989,1719867037857,-820.984693,0.00020592,2]
[330853990,1719867037868,-175.127575,0.00020592,2]
[330853991,1719867037878,-176.598289,0.00020592,2]
[330853992,1719867037887,-1443.008811,0.00020592,2]
[330853993,1719867037897,-899.575781,0.00020592,2]
[330853994,1719867037907,-2052.461732,0.00020592,2]
[330853995,1719867037916,-716.157361,0.00020592,2]
[330853996,1719867037925,-599.717187,0.00020592,2]
[330853997,1719867037935,-1004.759123,0.0002085,2]
[330853998,1719867037945,-599.717187,0.0002085,2]
[330853999,1719867037955,-547.323128,0.0002085,2]
[330854000,1719867037964,-1154.407049,0.0002085,2]
[330854001,1719867037974,-899.575781,0.0002085,2]
[330854002,1719867037983,-1505.138604,0.0002085,2]
[330854003,1719867037993,-716.157361,0.0002085,2]
[330854004,1719867038002,-1231.477039,0.0002085,2]
[330854005,1719867038012,-1443.008811,0.0002085,2]
[330854006,1719867038021,-1499.292968,0.0002085,2]
[330854008,1719867038031,-820.984693,0.0002085,2]
[330854010,1719867038040,-1443.008811,0.0002085,2]
[330854012,1719867038049,-899.575781,0.0002085,2]
[330854014,1719867038058,-2052.461732,0.0002085,2]
[330854016,1719867038068,-716.157361,0.0002085,2]
[330854017,1719867038077,-599.717187,0.0002085,2]
[330854018,1719867038087,-150.0,0.00020874,4]
[330854019,1719867038097,-312.2489,0.000209,2]
[330854020,1719867038106,-342.96601401,0.000209,2]
[330854021,1719867038116,-1300.0,0.000209,7]
[330854022,1719867038125,-1089.40475495,0.000209,2]
[330854023,1719867038135,-19200.17667964,0.00021,3]
[330854024,1719867038147,-30146.15517583,0.00021,3]
[330854025,1719867038157,-1250.0,0.00021,2]
[330854026,1719867038167,-225.19167095,0.00021,2]
[330854027,1719867038177,-2700.0,0.00021,7]
[330854028,1719867038187,-342.96601396,0.00021067,2]
[330854029,1719867038196,-1089.40475486,0.00021067,2]
[330854030,1719867038206,-4100.0,0.000211,7]
[330854031,1719867038215,-1004.759123,0.00021107,2]
[330854032,1719867038225,-599.717187,0.00021107,2]
[330854033,1719867038234,-547.323128,0.00021107,2]
[330854034,1719867038244,-1154.407049,0.00021107,2]
[330854035,1719867038253,-899.575781,0.00021107,2]
[330854036,1719867038263,-1505.138604,0.00021107,2]
[330854037,1719867038273,-716.157361,0.00021107,2]
[330854038,1719867038283,-1231.477039,0.00021107,2]
[330854039,1719867038292,-1443.008811,0.00021107,2]
[330854040,1719867038302,-1499.292968,0.00021107,2]
[330854041,1719867038312,-820.984693,0.00021107,2]
[330854042,1719867038322,-1443.008811,0.00021107,2]
[330854043,1719867038331,-899.575781,0.00021107,2]
[330854044,1719867038341,-2052.461732,0.00021107,2]
[330854045,1719867038351,-716.157361,0.00021107,2]
[330854046,1719867038360,-599.717187,0.00021107,2]
[330854047,1719867038370,-5400.0,0.000212,7]
[330854048,1719867038380,-342.96601396,0.00021233,2]
[330854049,1719867038390,-1089.40475486,0.00021233,2]
[330854050,1719867038400,-2500.0,0.00021265,2]
[330854051,1719867038410,-6800.0,0.000213,7]
[330854052,1719867038420,-151.0,0.00021313,7]
[330854053,1719867038429,-150.0,0.00021342,2]
[330854054,1719867038439,-150.0,0.00021342,2]
[330854055,1719867038449,-150.0,0.00021342,2]
[330854056,1719867038458,-150.0,0.00021342,2]
[330854057,1719867038468,-150.0,0.00021342,2]
[330854058,1719867038477,-150.0,0.00021342,2]
[330854059,1719867038487,-150.0,0.00021342,2]
[330854060,1719867038496,-151.0,0.0002135,2]
[330854061,1719867038505,-1004.759123,0.00021365,2]
[330854062,1719867038515,-599.717187,0.00021365,2]
[330854063,1719867038525,-547.323128,0.00021365,2]
[330854064,1719867038534,-1154.407049,0.00021365,2]
[330854065,1719867038544,-899.575781,0.00021365,2]
[330854066,1719867038553,-1505.138604,0.00021365,2]
[330854067,1719867038563,-716.157361,0.00021365,2]
[330854068,1719867038573,-1231.477039,0.00021365,2]
[330854069,1719867038582,-1443.008811,0.00021365,2]
[330854070,1719867038592,-1499.292968,0.00021365,2]
[330854071,1719867038603,-820.984693,0.00021365,2]
[330854072,1719867038613,-1443.008811,0.00021365,2]
[330854073,1719867038624,-899.575781,0.00021365,2]
[330854074,1719867038634,-2052.461732,0.00021365,2]
[330854075,1719867038643,-716.157361,0.00021365,2]
[330854076,1719867038653,-599.717187,0.00021365,2]
[330854077,1719867038663,-150.0,0.00021397,2]
[330854078,1719867038676,-150.0,0.00021397,2]
[330854079,1719867038686,-150.0,0.00021397,2]
[330854080,1719867038696,-150.0,0.00021397,2]
[330854081,1719867038705,-150.0,0.00021397,2]
[330854082,1719867038715,-150.0,0.00021397,2]
[330854083,1719867038725,-1300.0,0.000214,7]
[330854084,1719867038734,-342.96601396,0.000214,2]
[330854085,1719867038743,-1089.40475486,0.000214,2]
[330854086,1719867038755,-150.0,0.00021423,4]
[330854087,1719867038764,-254.070206,0.00021498,2]
[330854088,1719867038774,-1300.0,0.000215,7]
[330854089,1719867038783,-80980.2567,0.00021544,2]
[330854090,1719867038792,-342.96601396,0.00021567,2]
[330854091,1719867038802,-1089.40475486,0.00021567,2]
[330854092,1719867038811,-1300.0,0.000216,7]
[330854093,1719867038821,-1838.7809,0.000216,2]
[330854094,1719867038830,-1004.759123,0.00021622,2]
[330854095,1719867038839,-599.717187,0.00021622,2]
[330854096,1719867038848,-547.323128,0.00021622,2]
[330854097,1719867038858,-1154.407049,0.00021622,2]
[330854098,1719867038868,-899.575781,0.00021622,2]
[330854099,1719867038877,-1505.138604,0.00021622,2]
[330854100,1719867038887,-716.157361,0.00021622,2]
[330854101,1719867038897,-1231.477039,0.00021622,2]
[330854102,1719867038906,-1443.008811,0.00021622,2]
[330854103,1719867038916,-1499.292968,0.00021622,2]
[330854104,1719867038925,-820.984693,0.00021622,2]
[330854105,1719867038935,-1443.008811,0.00021622,2]
[330854106,1719867038944,-899.575781,0.00021622,2]
[330854107,1719867038954,-2052.461732,0.00021622,2]
[330854108,1719867038965,-716.157361,0.00021622,2]
[330854109,1719867038974,-599.717187,0.00021622,2]
[330854110,1719867038983,-176.876544,0.00021622,2]
[330854111,1719867038993,-151.0,0.00021634,2]
[330854112,1719867039002,-1500.0,0.00021642,2]
[330854113,1719867039012,-174.54,0.00021644,2]
[330854114,1719867039022,-513.71,0.00021644,2]
[330854115,1719867039031,-150.0,0.0002165,2]
[330854116,1719867039041,-150.0,0.00021652,2]
[330854117,1719867039051,-150.0,0.00021652,2]
[330854118,1719867039060,-150.0,0.00021659,2]
[330854119,1719867039070,-150.0,0.00021659,2]
[330854120,1719867039080,-150.0,0.00021662,2]
[330854121,1719867039091,-150.0,0.00021672,2]